bitfinex/quotes_BTCUSD_20220109
["timestamp","ask_amount","ask_price","bid_price","bid_amount"]
[1641714954486,0.0968,41836.0,41835.0,0.62599545]
[1641714954887,0.0968,41836.0,41835.0,0.90199962]
[1641714955188,0.0968,41836.0,41835.0,0.90473733]
[1641714955189,0.049,41836.0,41835.0,0.90473733]
[1641714955388,0.049,41836.0,41835.0,1.28884133]
[1641714956486,0.00620714,41842.0,41835.0,1.28884133]
[1641714956789,0.059781,41837.0,41835.0,0.90873733]
[1641714956986,0.059781,41837.0,41836.0,0.27221389]
[1641714957388,0.059781,41837.0,41835.0,0.62997959]
[1641714957788,0.059781,41837.0,41835.0,0.62597959]
[1641714958238,0.11957129,41837.0,41835.0,0.62597958]
[1641714959937,0.16737129,41837.0,41835.0,0.62597958]
[1641714960341,0.16737129,41837.0,41835.0,0.62638674]
[1641714960539,0.16737129,41837.0,41835.0,0.62599614]
[1641714960737,0.18537129,41837.0,41835.0,0.62599614]
[1641714961242,0.125581,41837.0,41835.0,0.62599614]
[1641714962488,0.107581,41837.0,41835.0,0.62599614]
[1641714962688,0.128581,41837.0,41835.0,0.62599614]
[1641714964593,0.120581,41837.0,41835.0,0.62899614]
[1641714964792,0.120581,41837.0,41835.0,0.62899541]
[1641714965943,0.107581,41837.0,41835.0,0.62599541]
[1641714966543,0.107581,41837.0,41835.0,0.62899541]
[1641714966744,0.118581,41837.0,41835.0,0.62899541]
[1641714967944,0.107581,41837.0,41835.0,0.62599541]
[1641714968542,0.119581,41837.0,41835.0,0.62899541]
[1641714969143,0.119581,41837.0,41835.0,0.62899544]
[1641714969791,0.107581,41837.0,41835.0,0.62599544]
[1641714970589,0.121581,41837.0,41835.0,0.62799544]
[1641714971790,0.107581,41837.0,41835.0,0.62599544]
[1641714972593,0.126581,41837.0,41835.0,0.62599544]
[1641714973838,0.107581,41837.0,41835.0,0.62599544]
[1641714974641,0.126581,41837.0,41835.0,0.62599544]
[1641714975845,0.107581,41837.0,41835.0,0.62599544]
[1641714976645,0.126581,41837.0,41835.0,0.62599544]
[1641714977888,0.107581,41837.0,41835.0,0.62599544]
[1641714978687,0.127581,41837.0,41835.0,0.62599544]
[1641714980747,0.147581,41837.0,41835.0,0.62599544]
[1641714981842,0.107581,41837.0,41835.0,0.62599544]
[1641714982245,0.107581,41837.0,41835.0,0.6264019]
[1641714982445,0.107581,41837.0,41835.0,0.62599544]
[1641714982644,0.01085,41836.0,41835.0,0.62599544]
[1641714983645,0.01085,41836.0,41835.0,0.62099544]
[1641714984044,0.01085,41836.0,41835.0,0.62099545]
[1641714984686,0.02485,41836.0,41835.0,0.62140192]
[1641714984890,0.02485,41836.0,41835.0,0.62099545]
[1641714985989,0.01085,41836.0,41835.0,0.62099545]
[1641714986593,0.02285,41836.0,41835.0,0.62099545]
[1641714986990,0.02285,41836.0,41835.0,0.62099958]
[1641714987591,0.012,41836.0,41835.0,0.62099958]
[1641714987994,0.01085,41836.0,41835.0,0.62099958]
[1641714988243,0.31303029,41836.0,41835.0,0.62099958]
[1641714988444,0.36083029,41836.0,41835.0,0.62099958]
[1641714988644,0.47183029,41836.0,41835.0,0.62099958]
[1641714989248,0.16965,41836.0,41835.0,0.62099958]
[1641714989646,0.06965,41836.0,41835.0,0.62099958]
[1641714989844,0.05865,41836.0,41835.0,0.62099958]
[1641714990244,0.05865,41836.0,41835.0,0.62099518]
[1641714990746,0.07365,41836.0,41835.0,0.62099518]
[1641714991990,0.05865,41836.0,41835.0,0.62099518]
[1641714992790,0.07365,41836.0,41835.0,0.62099518]
[1641714993890,0.05865,41836.0,41835.0,0.62099518]
[1641714994692,0.07065,41836.0,41835.0,0.62099547]
[1641714995943,0.05865,41836.0,41835.0,0.62099547]
[1641714996641,0.07365,41836.0,41835.0,0.62099547]
[1641714998042,0.05865,41836.0,41835.0,0.62099547]
[1641714998642,0.07165,41836.0,41835.0,0.62099547]
[1641714999042,0.07165,41836.0,41835.0,0.62099545]
[1641714999922,0.05865,41836.0,41835.0,0.62099545]
[1641715000712,0.07565,41836.0,41835.0,0.62099545]
[1641715001114,0.07565,41836.0,41835.0,0.62140192]
[1641715001313,0.07565,41836.0,41835.0,0.62099545]
[1641715001913,0.05865,41836.0,41835.0,0.62099545]
[1641715002715,0.07265,41836.0,41835.0,0.62099545]
[1641715003944,0.05865,41836.0,41835.0,0.62099545]
[1641715004744,0.07365,41836.0,41835.0,0.62099545]
[1641715005945,0.05865,41836.0,41835.0,0.62099545]
[1641715006746,0.07565,41836.0,41835.0,0.62099545]
[1641715007987,0.05865,41836.0,41835.0,0.62099545]
[1641715008788,0.07665,41836.0,41835.0,0.62099545]
[1641715009990,0.05865,41836.0,41835.0,0.62099545]
[1641715010745,0.07765,41836.0,41835.0,0.62099545]
[1641715011947,0.05865,41836.0,41835.0,0.62099545]
[1641715012145,0.05865,41836.0,41835.0,0.62140192]
[1641715012345,0.05865,41836.0,41835.0,0.62099545]
[1641715012745,0.07765,41836.0,41835.0,0.62099545]
[1641715013944,0.05865,41836.0,41835.0,0.62099545]
[1641715014694,0.07765,41836.0,41835.0,0.62099545]
[1641715015593,0.0668,41836.0,41835.0,0.62099545]
[1641715015996,0.0478,41836.0,41835.0,0.62099545]
[1641715016792,0.0748,41836.0,41835.0,0.62099545]
[1641715016999,0.027,41836.0,41835.0,0.91427375]
[1641715017396,0.027,41836.0,41835.0,1.29837775]
[1641715017592,0.027,41836.0,41835.0,1.00509945]
[1641715017794,0.027,41836.0,41835.0,1.27218733]
[1641715017996,0.059781,41837.0,41835.0,1.27218733]
[1641715018248,0.059781,41837.0,41836.0,0.26744123]
[1641715018847,0.092781,41837.0,41836.0,0.26984768]
[1641715020049,0.059781,41837.0,41836.0,0.26784768]
[1641715020849,0.119781,41837.0,41836.0,0.26784768]
[1641715021990,0.059781,41837.0,41836.0,0.26784768]
[1641715022792,0.072781,41837.0,41836.0,0.26984768]
[1641715023192,0.013,41837.0,41836.0,0.27025413]
[1641715023392,0.013,41837.0,41836.0,0.65395168]
[1641715023991,0.059775,41839.0,41836.0,0.65195168]
[1641715024194,0.059775,41839.0,41837.0,0.11955103]
[1641715024392,0.059775,41839.0,41838.0,0.2780602]
[1641715024895,0.122775,41839.0,41838.0,0.2780602]
[1641715025593,0.122775,41839.0,41838.0,0.27846661]
[1641715025864,0.063,41839.0,41838.0,0.66381581]
[1641715026263,0.0478,41846.0,41841.0,0.059765]
[1641715026462,0.0478,41846.0,41845.0,0.00124013]
[1641715026864,0.0478,41846.0,41845.0,0.27168129]
[1641715027063,0.0478,41846.0,41845.0,0.57169915]
[1641715027263,0.059762,41849.0,41845.0,0.57169915]
[1641715027466,0.11995315,41851.0,41845.0,0.57169915]
[1641715028063,0.059764,41849.0,41845.0,0.57169915]
[1641715029792,0.059764,41849.0,41845.0,0.63146215]
[1641715029995,0.059764,41849.0,41846.0,0.05976298]
[1641715031294,0.059764,41849.0,41845.0,0.57169915]
[1641715031893,0.059764,41849.0,41845.0,0.30125799]
[1641715032096,0.059764,41849.0,41846.0,0.24]
[1641715038103,0.00042524,41851.0,41849.0,0.00120269]
[1641715038503,0.00042524,41851.0,41849.0,0.06095769]
[1641715038907,0.00042524,41851.0,41849.0,0.06895769]
[1641715039305,0.00042527,41851.0,41850.0,0.32343906]
[1641715039904,0.00042527,41851.0,41850.0,0.70754306]
[1641715040106,0.00042527,41851.0,41850.0,1.03320129]
[1641715040849,0.00042527,41851.0,41850.0,1.04020129]
[1641715042249,0.00042527,41851.0,41850.0,1.03320129]
[1641715042851,0.00042527,41851.0,41850.0,1.03820129]
[1641715046194,0.00042527,41851.0,41850.0,1.03320129]
[1641715046794,0.00042527,41851.0,41850.0,1.03520129]
[1641715048101,0.00042527,41851.0,41850.0,1.03320129]
[1641715048941,0.00042527,41851.0,41850.0,1.03820129]
[1641715049342,0.03580008,41852.0,41851.0,0.384104]
[1641715049542,0.03580008,41852.0,41851.0,0.66600718]
[1641715050945,0.03580008,41852.0,41851.0,0.66900718]
[1641715052192,0.03580008,41852.0,41851.0,0.66600718]
[1641715052993,0.03580008,41852.0,41851.0,0.66900718]
[1641715054195,0.03580008,41852.0,41851.0,0.66600718]
[1641715054897,0.03580008,41852.0,41851.0,0.66900718]
[1641715056148,0.03580008,41852.0,41851.0,0.66600718]
[1641715056952,0.03580008,41852.0,41851.0,0.001]
[1641715057151,0.15532608,41852.0,41851.0,0.001]
[1641715057749,0.40532608,41852.0,41851.0,0.001]
[1641715057949,0.41617608,41852.0,41851.0,0.001]
[1641715058349,0.41617608,41852.0,41846.0,0.35993204]
[1641715058350,0.16617608,41852.0,41846.0,0.35993204]
[1641715058552,0.15532608,41852.0,41846.0,0.35993204]
[1641715058950,0.18132608,41852.0,41846.0,0.35993204]
[1641715059149,0.18132608,41852.0,41846.0,0.35993206]
[1641715060195,0.18132608,41852.0,41846.0,0.35993288]
[1641715060196,0.15532608,41852.0,41846.0,0.35993288]
[1641715060899,0.19132608,41852.0,41846.0,0.35993288]
[1641715062202,0.15532608,41852.0,41846.0,0.35993288]
[1641715062601,0.15532608,41852.0,41847.0,0.11952185]
[1641715062802,0.15532608,41852.0,41847.0,0.05976085]
[1641715063002,0.18732608,41852.0,41846.0,0.30017053]
[1641715063845,0.18732608,41852.0,41847.0,0.059761]
[1641715064045,0.06780008,41852.0,41846.0,0.36032966]
[1641715064246,0.03580008,41852.0,41846.0,0.36032966]
[1641715064745,0.03580008,41852.0,41846.0,0.35992213]
[1641715064946,0.05180008,41852.0,41848.0,0.119519]
[1641715065247,0.05180008,41852.0,41848.0,0.38801032]
[1641715065248,0.059759,41850.0,41848.0,0.38801032]
[1641715065548,0.05180008,41852.0,41849.0,0.384104]
[1641715065846,0.05180008,41852.0,41848.0,0.26849132]
[1641715066047,0.03580008,41852.0,41849.0,0.119514]
[1641715066448,0.03580008,41852.0,41850.0,0.05975686]
[1641715066848,0.05880008,41852.0,41850.0,0.05975686]
[1641715067101,0.11855608,41852.0,41850.0,0.05975686]
[1641715067700,0.11855608,41852.0,41849.0,0.003]
[1641715068101,0.09555608,41852.0,41846.0,0.24040748]
[1641715068905,0.12555608,41852.0,41846.0,0.24040748]
[1641715069303,0.12555608,41852.0,41846.0,0.2404075]
[1641715069707,0.12555608,41852.0,41846.0,0.3001695]
[1641715070104,0.09555608,41852.0,41847.0,0.05976067]
[1641715070304,0.09555608,41852.0,41846.0,0.2404075]
[1641715070951,0.12655608,41852.0,41848.0,0.059759]
[1641715071150,0.12655608,41852.0,41849.0,0.05975828]
[1641715072150,0.09555608,41852.0,41849.0,0.05975828]
[1641715072950,0.11655608,41852.0,41849.0,0.05975828]
[1641715074154,0.09555608,41852.0,41850.0,0.05975643]
[1641715074600,0.09555608,41852.0,41846.0,0.24040748]
[1641715075001,0.11255608,41852.0,41846.0,0.24040748]
[1641715075601,0.11255608,41852.0,41847.0,0.119522]
[1641715075801,0.11255608,41852.0,41848.0,0.05975991]
[1641715076301,0.09555608,41852.0,41848.0,0.05975991]
[1641715076804,0.09555608,41852.0,41848.0,0.17927891]
[1641715077002,0.09555608,41852.0,41849.0,0.0597576]
[1641715077003,0.11555608,41852.0,41849.0,0.0597576]
[1641715077302,0.11555608,41852.0,41846.0,0.24040749]
[1641715077803,0.11555608,41852.0,41849.0,0.059757]
[1641715078004,0.11555608,41852.0,41850.0,0.0597555]
[1641715078251,0.09555608,41852.0,41850.0,0.0597555]
[1641715079057,0.11655608,41852.0,41850.0,0.0597555]
[1641715080252,0.09555608,41852.0,41850.0,0.0597555]
[1641715080953,0.11555608,41852.0,41850.0,0.0597555]
[1641715081352,0.11555608,41852.0,41848.0,0.11951928]
[1641715081752,0.11555608,41852.0,41848.0,0.05976]
[1641715082196,0.09555608,41852.0,41848.0,0.05976]
[1641715082898,0.12055608,41852.0,41849.0,0.05975795]
[1641715083899,0.12055608,41852.0,41849.0,0.17927395]
[1641715084100,0.12055608,41852.0,41850.0,0.05975695]
[1641715084301,0.09555608,41852.0,41850.0,0.05975695]
[1641715085201,0.11655608,41852.0,41850.0,0.05975695]
[1641715086155,0.09555608,41852.0,41848.0,0.17893706]
[1641715086352,0.09555608,41852.0,41846.0,0.35992268]
[1641715086553,0.03580008,41852.0,41849.0,0.059757]
[1641715086752,0.03580008,41852.0,41851.0,0.00123453]
[1641715086951,0.05680008,41852.0,41851.0,0.00123453]
[1641715088152,0.03580008,41852.0,41851.0,0.00123453]
[1641715088954,0.08480008,41852.0,41851.0,0.00123453]
[1641715089804,0.08480008,41852.0,41848.0,0.11951838]
[1641715089999,0.05976,41851.0,41848.0,0.08951838]
[1641715091001,0.07776,41851.0,41848.0,0.09451838]
[1641715091797,0.07776,41851.0,41848.0,0.03475938]
[1641715092196,0.05976,41851.0,41848.0,0.02975938]
[1641715092597,0.05976,41851.0,41848.0,0.08951838]
[1641715093098,0.08576,41851.0,41848.0,0.08951838]
[1641715093960,0.08576,41851.0,41848.0,0.14927738]
[1641715094158,0.05976,41851.0,41848.0,0.14927738]
[1641715094962,0.09676,41851.0,41848.0,0.14927738]
[1641715096361,0.05976,41851.0,41848.0,0.14927738]
[1641715097000,0.08676,41851.0,41848.0,0.14927738]
[1641715098103,0.027,41851.0,41850.0,0.00121395]
[1641715098301,0.03580008,41852.0,41850.0,0.38531795]
[1641715099100,0.03580008,41852.0,41850.0,0.38831795]
[1641715099502,0.03580008,41852.0,41850.0,0.56755325]
[1641715100303,0.03580008,41852.0,41850.0,0.80499227]
[1641715100955,0.03580008,41852.0,41850.0,0.80899227]
[1641715101352,0.03580008,41852.0,41851.0,0.24149139]
[1641715101559,0.03580008,41852.0,41851.0,0.62559539]
[1641715103054,0.03580008,41852.0,41851.0,0.63259539]
[1641715103253,0.03580008,41852.0,41851.0,0.73259539]
[1641715103857,0.03580008,41852.0,41851.0,1.99759539]
[1641715104255,0.03580008,41852.0,41851.0,1.99059539]
[1641715104507,0.03580008,41852.0,41851.0,0.72559539]
[1641715105011,0.03580008,41852.0,41851.0,0.73959539]
[1641715106208,0.03580008,41852.0,41851.0,0.72559539]
[1641715107108,0.03580008,41852.0,41851.0,0.73859539]
[1641715108360,0.03580008,41852.0,41851.0,0.72559539]
[1641715109062,0.03580008,41852.0,41851.0,0.73759539]
[1641715110266,0.03580008,41852.0,41851.0,0.72559539]
[1641715110463,0.03580008,41852.0,41851.0,0.484104]
[1641715111064,0.03580008,41852.0,41851.0,0.497104]
[1641715112309,0.03580008,41852.0,41851.0,0.484104]
[1641715113109,0.03580008,41852.0,41851.0,0.497104]
[1641715114310,0.03580008,41852.0,41851.0,0.484104]
[1641715114610,0.03580008,41852.0,41851.0,0.434104]
[1641715115012,0.03580008,41852.0,41851.0,0.446104]
[1641715116264,0.03580008,41852.0,41851.0,0.434104]
[1641715116465,0.03580008,41852.0,41851.0,0.62392767]
[1641715116665,0.03580008,41852.0,41851.0,0.434104]
[1641715117064,0.03580008,41852.0,41851.0,0.446104]
[1641715118367,0.03580008,41852.0,41851.0,0.434104]
[1641715119167,0.03580008,41852.0,41851.0,0.445104]
[1641715121006,0.03580008,41852.0,41851.0,0.446104]
[1641715122307,0.03580008,41852.0,41851.0,0.384104]
[1641715122907,0.03580008,41852.0,41850.0,0.0597473]
[1641715123109,0.03580008,41852.0,41851.0,0.003]
[1641715124060,0.09555708,41852.0,41851.0,0.003]
[1641715124355,0.03580008,41852.0,41851.0,0.003]
[1641715124554,0.03580008,41852.0,41850.0,0.0597473]
[1641715125056,0.03580008,41852.0,41850.0,0.0687473]
[1641715125857,0.03580008,41852.0,41851.0,0.384104]
[1641715129512,0.09555708,41852.0,41851.0,0.384104]
[1641715129711,0.03580008,41852.0,41851.0,0.384104]
[1641715133457,0.03580008,41852.0,41851.0,0.65338698]
[1641715135108,0.03580008,41852.0,41851.0,0.66038698]
[1641715136308,0.03580008,41852.0,41851.0,0.384104]
[1641715137210,0.03580008,41852.0,41851.0,0.392104]
[1641715138354,0.03580008,41852.0,41851.0,0.384104]
[1641715138756,0.03580008,41852.0,41848.0,0.05976]
[1641715138953,0.05976,41851.0,41848.0,0.05976]
[1641715139154,0.05976,41851.0,41849.0,0.384104]
[1641715139656,0.40919156,41851.0,41849.0,0.384104]
[1641715139854,0.05976,41851.0,41848.0,0.05976]
[1641715140053,0.05976,41851.0,41849.0,0.384104]
[1641715140755,0.05976,41851.0,41849.0,0.44386259]
[1641715141153,0.05976,41851.0,41849.0,0.44886259]
[1641715142412,0.05976,41851.0,41849.0,0.44386259]
[1641715143113,0.05976,41851.0,41849.0,0.44886259]
[1641715144313,0.05976,41851.0,41849.0,0.44386259]
[1641715145115,0.05976,41851.0,41849.0,0.44986259]
[1641715146363,0.05976,41851.0,41849.0,0.44386259]
[1641715147161,0.05976,41851.0,41849.0,0.44486259]
[1641715148359,0.05976,41851.0,41849.0,0.44386259]
[1641715151915,0.05976,41851.0,41849.0,0.384104]
[1641715152115,0.05976,41851.0,41847.0,0.059761]
[1641715152616,0.05976,41851.0,41847.0,0.11952317]
[1641715153015,0.05976,41851.0,41847.0,0.05976217]
[1641715153260,0.05976,41851.0,41847.0,0.06676217]
[1641715153861,0.05976,41851.0,41847.0,0.007]
[1641715154063,0.05976,41851.0,41848.0,0.05976043]
[1641715155063,0.05976,41851.0,41848.0,0.06176043]
[1641715156266,0.05976,41851.0,41848.0,0.12152043]
[1641715156464,0.05976,41851.0,41848.0,0.11952043]
[1641715157109,0.05976,41851.0,41848.0,0.12152043]
[1641715158112,0.05976,41851.0,41848.0,0.06176043]
[1641715158312,0.05976,41851.0,41848.0,0.05976043]
[1641715159011,0.05976,41851.0,41846.0,0.24040749]
[1641715159213,0.05976,41851.0,41848.0,0.002]
[1641715160411,0.05976,41851.0,41846.0,0.30016649]
[1641715160614,0.05976,41851.0,41848.0,0.11951826]
[1641715160856,0.05976,41851.0,41846.0,0.24040749]
[1641715161254,0.05976,41851.0,41848.0,0.002]
[1641715162457,0.05976,41851.0,41846.0,0.24040749]
[1641715162656,0.05976,41851.0,41847.0,0.059759]
[1641715162856,0.05976,41851.0,41848.0,0.384104]
[1641715164807,0.05976,41851.0,41848.0,0.443862]
[1641715165009,0.05976,41851.0,41849.0,0.0597571]
[1641715165208,0.05976,41851.0,41850.0,0.384104]
[1641715165408,0.05976,41851.0,41848.0,0.002]
[1641715166307,0.05976,41851.0,41848.0,0.12151932]
[1641715166508,0.05976,41851.0,41848.0,0.11951932]
[1641715167107,0.05976,41851.0,41848.0,0.12151932]
[1641715167315,0.31510657,41850.0,41848.0,0.002]
[1641715167516,1.020616,41849.0,41848.0,0.002]
[1641715167712,1.50656488,41849.0,41848.0,0.002]
[1641715167913,1.50656488,41849.0,41836.0,0.50637749]
[1641715167914,0.65656488,41849.0,41836.0,0.50637749]
[1641715168111,1.07164476,41849.0,41832.0,0.50637749]
[1641715168362,0.37851013,41838.0,41832.0,0.50637749]
[1641715168564,0.29426318,41837.0,41832.0,0.50637749]
[1641715168767,0.29408245,41837.0,41832.0,0.50637749]
[1641715168964,0.29408245,41837.0,41826.0,0.50637749]
[1641715169164,0.31085,41836.0,41835.0,0.41858898]
[1641715169665,0.41085,41836.0,41835.0,0.41858898]
[1641715170468,0.41085,41836.0,41835.0,0.38058898]
[1641715170667,0.72986276,41836.0,41835.0,0.38058898]
[1641715171269,0.74086276,41836.0,41835.0,0.38058898]
[1641715171867,0.74086276,41836.0,41835.0,0.3810026]
[1641715172313,0.34086276,41836.0,41835.0,0.3810026]
[1641715172516,0.42986276,41836.0,41835.0,0.3810026]
[1641715173115,0.44086276,41836.0,41835.0,0.3809845]
[1641715174116,0.44086276,41836.0,41835.0,0.6209845]
[1641715174518,0.64648159,41836.0,41835.0,0.6209845]
[1641715174718,0.38058898,41835.0,41824.0,0.059791]
[1641715174919,0.38058898,41835.0,41816.0,0.060112]
[1641715174920,0.119592,41830.0,41821.0,0.00033]
[1641715175122,0.17387576,41829.0,41824.0,0.043]
[1641715175518,0.05980288,41828.0,41824.0,0.043]
[1641715176359,0.059802,41826.0,41821.0,0.00033]
[1641715176661,0.34041385,41823.0,41821.0,0.00033]
[1641715177258,0.34341385,41823.0,41821.0,0.00033]
[1641715178359,0.40321785,41823.0,41821.0,0.00033]
[1641715178558,0.40021785,41823.0,41821.0,0.00075045]
[1641715179259,0.41321785,41823.0,41821.0,0.00075045]
[1641715180109,0.072804,41823.0,41821.0,0.00075045]
[1641715180510,0.059804,41823.0,41821.0,0.00075045]
[1641715180711,0.059794,41826.0,41821.0,0.06054426]
[1641715180911,0.059794,41826.0,41821.0,0.00075026]
[1641715181310,0.075794,41826.0,41821.0,0.00075026]
[1641715181713,0.016,41826.0,41823.0,0.05979433]
[1641715181911,0.016,41826.0,41824.0,0.05979]
[1641715182511,0.5503093,41831.0,41824.0,0.05979]
[1641715182712,0.5503093,41831.0,41826.0,0.05978931]
[1641715182914,0.059791,41828.0,41826.0,0.05978931]
[1641715183961,0.059791,41828.0,41826.0,0.06019165]
[1641715184561,0.059791,41828.0,41826.0,0.29019165]
[1641715185161,0.086791,41828.0,41826.0,0.29019165]
[1641715185361,0.086791,41828.0,41826.0,0.29059399]
[1641715185565,0.086791,41828.0,41826.0,0.23040234]
[1641715186462,0.059791,41828.0,41826.0,0.23080468]
[1641715186762,0.059791,41828.0,41826.0,0.23040234]
[1641715187205,0.084791,41828.0,41826.0,0.23040234]
[1641715187607,0.084791,41828.0,41826.0,0.23040231]
[1641715188608,0.059791,41828.0,41826.0,0.23040231]
[1641715188807,0.51085,41827.0,41826.0,0.23040231]
[1641715189808,0.51085,41827.0,41826.0,0.23040232]
[1641715190008,0.61085,41827.0,41826.0,0.23040232]
[1641715190207,0.11085,41827.0,41826.0,0.23040232]
[1641715190611,0.01085,41827.0,41826.0,0.23040232]
[1641715191262,0.23812641,41827.0,41826.0,0.23040232]
[1641715191666,0.5482212,41827.0,41826.0,0.23040232]
[1641715193165,0.5242212,41827.0,41826.0,0.23040232]
[1641715193468,0.5492212,41827.0,41826.0,0.23040232]
[1641715193665,0.23912641,41827.0,41826.0,0.23040232]
[1641715194266,0.54435224,41827.0,41826.0,0.23040232]
[1641715194508,0.51935224,41827.0,41826.0,0.23040232]
[1641715194709,0.21412641,41827.0,41826.0,0.23040232]
[1641715195308,0.23812641,41827.0,41826.0,0.23040232]
[1641715196311,0.23812641,41827.0,41826.0,0.23080464]
[1641715196612,0.21412641,41827.0,41826.0,0.23040232]
[1641715197411,0.23812641,41827.0,41826.0,0.23080464]
[1641715197612,0.23812641,41827.0,41826.0,0.23040232]
[1641715197613,0.54310425,41827.0,41826.0,0.23040232]
[1641715197814,0.94310425,41827.0,41826.0,0.05269159]
[1641715198016,0.059813,41823.0,41821.0,0.00033]
[1641715198261,0.46295259,41822.0,41821.0,0.00033]
[1641715198464,1.23020259,41822.0,41821.0,0.00033]
[1641715198664,1.33020259,41822.0,41821.0,0.00033]
[1641715199260,1.34120259,41822.0,41821.0,0.00033]
[1641715199463,1.24120259,41822.0,41821.0,0.00033]
[1641715199661,1.24120259,41822.0,41821.0,0.00075253]
[1641715200561,1.09120259,41822.0,41821.0,0.00075253]
[1641715200761,1.19120259,41822.0,41821.0,0.00075253]
[1641715201166,0.8391,41822.0,41821.0,0.00075253]
[1641715201363,0.8611,41822.0,41821.0,0.00075253]
[1641715202616,0.8281,41822.0,41821.0,0.00075253]
[1641715203014,0.8281,41822.0,41821.0,0.0007381]
[1641715203413,0.8511,41822.0,41821.0,0.0007381]
[1641715204217,0.8511,41822.0,41821.0,0.00072036]
[1641715204616,0.8281,41822.0,41821.0,0.00072036]
[1641715205018,0.8281,41822.0,41821.0,0.23072036]
[1641715205317,1.17463764,41822.0,41821.0,0.23072036]
[1641715205963,1.17987889,41822.0,41821.0,0.00072036]
[1641715206563,1.15287889,41822.0,41821.0,0.00072036]
[1641715207363,1.17787889,41822.0,41821.0,0.00072946]
[1641715208465,1.17787889,41822.0,41821.0,0.00072984]
[1641715208664,1.15287889,41822.0,41821.0,0.00072984]
[1641715209264,1.17887889,41822.0,41821.0,0.00072984]
[1641715209508,1.18145037,41822.0,41821.0,0.00072984]
[1641715209712,0.86191273,41822.0,41821.0,0.00072984]
[1641715210114,1.18664389,41822.0,41821.0,0.00064184]
[1641715210811,1.16064389,41822.0,41821.0,0.00064184]
[1641715211416,1.18864389,41822.0,41821.0,0.00064184]
[1641715211813,1.18864389,41822.0,41821.0,0.00064164]
[1641715212016,1.08864389,41822.0,41821.0,0.00064164]
[1641715212615,1.06064389,41822.0,41821.0,0.00064164]
[1641715213116,0.73591273,41822.0,41821.0,0.00064163]
[1641715213366,1.06185272,41822.0,41821.0,0.00064163]
[1641715213565,1.06185272,41822.0,41817.0,0.00011]
[1641715213768,0.059816,41818.0,41811.0,0.00422]
[1641715214164,0.01085,41817.0,41811.0,0.00422]
[1641715214566,0.29919976,41820.0,41811.0,0.00422]
[1641715214765,0.059817,41813.0,41811.0,0.00422]
[1641715215370,0.073817,41813.0,41811.0,0.00422]
[1641715216669,0.059817,41813.0,41811.0,0.00422]
[1641715217313,0.069817,41813.0,41811.0,0.00462539]
[1641715218317,0.069817,41813.0,41811.0,0.06443785]
[1641715218515,0.00128574,41814.0,41811.0,0.06443785]
[1641715218915,0.00128574,41814.0,41812.0,0.05603849]
[1641715219116,0.00128574,41814.0,41812.0,0.10603849]
[1641715219314,0.00128574,41814.0,41813.0,1.19420105]
[1641715219515,0.00128574,41814.0,41813.0,1.29420105]
[1641715219719,0.00128574,41816.0,41813.0,0.54420105]
[1641715219915,1.2,41821.0,41820.0,0.29045042]
[1641715220116,1.2,41821.0,41820.0,0.6052298]
[1641715220515,1.2,41821.0,41820.0,0.76502321]
[1641715220771,1.2,41821.0,41820.0,1.46416255]
[1641715220968,1.2,41821.0,41820.0,1.84826655]
[1641715221467,0.8246,41821.0,41820.0,1.92226655]
[1641715222469,0.599,41821.0,41820.0,1.92226655]
[1641715222670,0.599,41821.0,41820.0,1.84826655]
[1641715223369,0.599,41821.0,41820.0,1.87926655]
[1641715224720,0.599,41821.0,41820.0,1.84826655]
[1641715225119,0.60028574,41821.0,41820.0,1.84826655]
[1641715225319,0.60028574,41821.0,41820.0,1.88026655]
[1641715226218,0.60010485,41821.0,41820.0,1.88026655]
[1641715226619,0.60010485,41821.0,41820.0,1.84826655]
[1641715227420,0.60010485,41821.0,41820.0,1.88551528]
[1641715228770,0.60010485,41821.0,41820.0,1.84951528]
[1641715229173,0.60010485,41821.0,41820.0,3.11451528]
[1641715229376,0.60010485,41821.0,41820.0,3.14051528]
[1641715230174,0.60010485,41821.0,41820.0,3.14144738]
[1641715230477,0.60010485,41821.0,41820.0,3.24144738]
[1641715230776,0.06254197,41826.0,41825.0,0.00121492]
[1641715230975,0.06254197,41826.0,41825.0,0.58641417]
[1641715231176,0.06254197,41826.0,41825.0,0.73641417]
[1641715231479,0.06254197,41826.0,41825.0,0.81841417]
[1641715231675,0.06254202,41826.0,41825.0,0.81841417]
[1641715231876,0.06254202,41826.0,41825.0,0.97819016]
[1641715232114,0.06254202,41826.0,41825.0,2.24319016]
[1641715232715,0.00620714,41832.0,41825.0,2.21119016]
[1641715232919,0.00620714,41832.0,41830.0,1.384536]
[1641715233118,0.37142071,41835.0,41832.0,0.44385864]
[1641715233315,0.37142071,41835.0,41834.0,0.98357717]
[1641715233516,0.37142071,41835.0,41834.0,1.37944793]
[1641715233715,0.37142071,41835.0,41834.0,1.47944793]
[1641715235016,0.37142071,41835.0,41834.0,1.37944793]
[1641715235215,0.37142071,41835.0,41834.0,1.08357717]
[1641715235417,0.37142071,41835.0,41834.0,1.09657717]
[1641715236773,0.37142071,41835.0,41834.0,1.08357717]
[1641715237179,0.37185688,41835.0,41834.0,1.08357717]
[1641715237373,0.37185688,41835.0,41834.0,1.11957717]
[1641715237974,0.37185688,41835.0,41834.0,1.21957717]
[1641715238376,0.37185688,41835.0,41834.0,1.11957717]
[1641715238575,0.37185688,41835.0,41834.0,1.49707974]
[1641715238776,0.37185688,41835.0,41834.0,1.46107974]
[1641715239518,0.37185688,41835.0,41834.0,1.49507974]
[1641715240318,0.37185688,41835.0,41834.0,1.49601184]
[1641715240718,0.37185688,41835.0,41834.0,1.46201184]
[1641715241318,0.37185688,41835.0,41834.0,1.18450927]
[1641715241517,0.37184715,41835.0,41834.0,1.22050927]
[1641715242318,0.37184715,41835.0,41834.0,1.12050927]
[1641715242518,0.37184715,41835.0,41834.0,1.22200927]
[1641715242718,0.37184715,41835.0,41834.0,1.18600927]
[1641715243370,0.37184715,41835.0,41834.0,1.21100927]
[1641715244070,0.37166635,41835.0,41834.0,1.21100927]
[1641715244471,0.37166635,41835.0,41834.0,1.48857292]
[1641715244674,0.37166635,41835.0,41834.0,1.46357292]
[1641715244971,0.37166635,41835.0,41834.0,1.18600927]
[1641715245176,0.37209279,41835.0,41834.0,1.18600927]
[1641715245373,0.37166635,41835.0,41834.0,1.21100927]
[1641715245672,0.37166635,41835.0,41834.0,1.48973016]
[1641715246072,0.37165706,41835.0,41834.0,1.48973016]
[1641715246872,0.37165706,41835.0,41834.0,1.46473016]
[1641715247613,0.37165706,41835.0,41834.0,1.48873016]